bitfinex-derivatives/quotes_ETHF0:USTF0_20250507
["timestamp","ask_amount","ask_price","bid_price","bid_amount"]
[1746644063067,12.05854893,1799.5,1799.3,12.93950674]
[1746644063263,12.05851893,1799.5,1799.4,14.5486264]
[1746644063462,10.94724893,1799.5,1799.4,16.6451164]
[1746644063666,12.05849893,1799.5,1799.4,16.6451164]
[1746644064063,1.11125,1799.5,1799.4,16.6451164]
[1746644064266,1.11125,1799.5,1799.4,17.7564264]
[1746644064566,1.11125,1799.5,1799.4,16.6451164]
[1746644064767,1.1112,1799.6,1799.5,1.11122]
[1746644064961,1.1112,1799.6,1799.5,3.76842966]
[1746644065162,1.1112,1799.6,1799.5,15.5967164]
[1746644065359,1.1112,1799.6,1799.5,13.4373164]
[1746644065768,1.11125,1799.5,1799.4,8.3598]
[1746644065964,1.11121,1799.6,1799.5,14.05074674]
[1746644066269,1.11121,1799.6,1799.5,1.60904966]
[1746644066469,1.11116,1799.7,1799.5,13.4373164]
[1746644066673,1.11116,1799.7,1799.6,1.60899966]
[1746644066872,1.11116,1799.7,1799.6,13.4373164]
[1746644067166,1.11119,1799.6,1799.5,2.1594]
[1746644067356,2.2146,1799.6,1799.5,3.27065]
[1746644067562,3.32571,1799.8,1799.5,15.5967164]
[1746644067764,3.32571,1799.8,1799.7,12.93950674]
[1746644067765,3.32566,1799.8,1799.7,12.93950674]
[1746644067966,1.11112,1799.7,1799.6,0.49780966]
[1746644068163,2.2146,1799.7,1799.4,5.152]
[1746644068365,1.1112,1799.6,1799.5,13.4373164]
[1746644068566,1.11131,1799.4,1799.3,3.2078]
[1746644068766,1.11131,1799.4,1799.3,16.14730674]
[1746644069368,3.32589,1799.5,1799.3,13.4373164]
[1746644069568,3.32585,1799.5,1799.4,12.93950674]
[1746644069871,1.11131,1799.4,1799.3,16.14730674]
[1746644070073,3.41131,1799.4,1799.3,17.25867674]
[1746644070261,3.41131,1799.4,1799.3,16.14730674]
[1746644070774,1.11137,1799.3,1799.2,1.11141]
[1746644070969,1.11145,1799.2,1799.0,45.951]
[1746644071273,5.9858,1799.6,1799.2,14.5486964]
[1746644071472,2.3,1799.5,1799.2,14.5487164]
[1746644071673,2.3,1799.5,1799.4,14.5486264]
[1746644071878,3.41127,1799.5,1799.4,13.4373164]
[1746644072174,3.41127,1799.5,1799.4,12.93950674]
[1746644072576,2.3,1799.5,1799.4,14.05081674]
[1746644072873,3.41125,1799.5,1799.4,14.5486264]
[1746644073271,3.41125,1799.5,1799.4,13.4373164]
[1746644073576,2.3,1799.5,1799.4,13.4373164]
[1746644073776,3.2078,1800.0,1799.4,20.9124164]
[1746644074076,2.1311,1799.9,1799.8,12.93950674]
[1746644074369,3.2421,1799.9,1799.8,18.9702164]
[1746644074575,3.2421,1799.9,1799.8,18.47240674]
[1746644074773,3.2421,1799.9,1799.8,18.9702164]
[1746644075278,3.2421,1799.9,1799.8,13.4373164]
[1746644076967,2.1311,1799.9,1799.6,5.5329]
[1746644077177,1.11108,1799.8,1799.7,13.4373164]
[1746644077572,1.11108,1799.8,1799.7,12.93950674]
[1746644077773,1.11108,1799.8,1799.7,16.14730674]
[1746644077969,2.1311,1799.9,1799.6,4.31895]
[1746644078174,3.24216,1799.9,1799.8,16.14730674]
[1746644078380,3.24216,1799.9,1799.8,16.6451164]
[1746644078777,3.24216,1799.9,1799.8,13.4373164]
[1746644079383,3.2421,1799.9,1799.8,13.4373164]
[1746644079675,2.1311,1799.9,1799.8,14.5483764]
[1746644079869,3.2421,1799.9,1799.8,14.5483764]
[1746644080473,3.2421,1799.9,1799.8,13.4373164]
[1746644081483,3.2421,1799.9,1799.8,14.5483764]
[1746644081778,3.2421,1799.9,1799.8,13.4373164]
[1746644082277,3.2421,1799.9,1799.8,14.5483764]
[1746644082982,1.111,1800.0,1799.9,1.111]
[1746644083174,3.36932,1800.1,1800.0,14.5482564]
[1746644083481,2.2584,1800.1,1800.0,3.29994]
[1746644083776,3.36928,1800.1,1800.0,16.7372564]
[1746644084080,3.36928,1800.1,1800.0,15.6263164]
[1746644084273,3.36928,1800.1,1800.0,16.7372564]
[1746644084582,3.36928,1800.1,1800.0,15.6263164]
[1746644084777,3.36928,1800.1,1800.0,13.4373164]
[1746644084979,1.11094,1800.0,1799.9,3.2078]
[1746644085183,3.40394,1800.0,1799.9,3.2078]
[1746644086082,3.40394,1800.0,1799.9,16.6451164]
[1746644086283,3.40394,1800.0,1799.9,3.2078]
[1746644087085,1.11106,1799.8,1799.7,4.31891]
[1746644087378,1.11106,1799.8,1799.7,16.14730674]
[1746644087578,4.5917,1800.0,1799.7,16.14730674]
[1746644087774,1.11106,1799.8,1799.7,17.25838674]
[1746644088183,4.5917,1800.0,1799.7,16.14730674]
[1746644088382,1.11104,1799.9,1799.8,14.5483664]
[1746644088583,2.1667,1799.9,1799.8,14.5483664]
[1746644088782,3.2777,1799.9,1799.8,14.5483664]
[1746644089081,2.1667,1799.9,1799.8,14.5483664]
[1746644090085,3.2078,1800.2,1800.1,1.11088]
[1746644090276,1.11091,1800.1,1800.0,16.6451164]
[1746644090480,3.27761,1800.1,1800.0,17.7560564]
[1746644091477,3.27761,1800.1,1800.0,13.4373164]
[1746644091783,1.111,1799.9,1799.8,4.31885]
[1746644091985,1.111,1799.9,1799.8,4.31886]
[1746644092285,1.11098,1800.0,1799.9,1.11097]
[1746644092582,2.2254,1800.0,1799.9,14.5482864]
[1746644092785,2.2254,1800.0,1799.9,16.7620864]
[1746644092979,3.33634,1800.0,1799.9,16.7620864]
[1746644093180,3.33634,1800.0,1799.9,13.4373164]
[1746644093379,3.33634,1800.0,1799.9,14.5483164]
[1746644093781,3.33634,1800.0,1799.9,16.7621164]
[1746644093985,3.33634,1800.0,1799.9,15.6511164]
[1746644094582,3.33634,1800.0,1799.9,16.7621164]
[1746644095981,3.33634,1800.0,1799.9,12.93950674]
[1746644096487,3.33634,1800.0,1799.9,14.5483164]
[1746644096690,3.33634,1800.0,1799.9,16.8648164]
[1746644096983,3.33634,1800.0,1799.9,15.7538164]
[1746644097485,3.33634,1800.0,1799.9,16.8648164]
[1746644097888,1.11092,1800.1,1800.0,1.11094]
[1746644098082,1.11092,1800.1,1800.0,3.33684]
[1746644098275,1.11092,1800.1,1800.0,19.9819564]
[1746644099487,1.11092,1800.1,1800.0,13.4373164]
[1746644099885,3.45064,1800.2,1800.1,1.11088]
[1746644100085,3.45064,1800.2,1800.1,14.5481964]
[1746644100392,1.11075,1800.4,1800.3,1.11075]
[1746644100592,1.11075,1800.4,1800.3,14.5480664]
[1746644100593,2.2921,1800.4,1800.3,14.5480664]
[1746644100795,3.40277,1800.5,1800.4,1.11069]
[1746644100986,3.40277,1800.5,1800.4,15.7547164]
[1746644101191,3.40277,1800.5,1800.4,16.8654064]
[1746644101391,3.40277,1800.5,1800.4,15.7547164]
[1746644101695,3.40277,1800.5,1800.4,16.8654064]
[1746644101993,5.50133208,1800.7,1800.4,18.9625164]
[1746644102193,8.90399208,1800.7,1800.5,14.5478964]
[1746644102494,1.11057,1800.6,1800.5,16.8652964]
[1746644102792,5.50133208,1800.7,1800.6,14.5478864]
[1746644102987,5.50133208,1800.7,1800.6,17.7556864]
[1746644103187,6.61184208,1800.7,1800.6,17.7556864]
[1746644103486,1.11057,1800.6,1800.5,5.996]
[1746644103687,9.01247208,1800.7,1800.6,13.4373164]
[1746644104194,9.01244208,1800.7,1800.6,17.7556864]
[1746644105296,9.01244208,1800.7,1800.6,13.4373164]
[1746644105491,9.01244208,1800.7,1800.5,5.996]
[1746644105492,1.11057,1800.6,1800.5,5.996]
[1746644105790,2.77664,1800.5,1800.1,14.63793]
[1746644106093,3.47209,1800.4,1800.3,1.11075]
[1746644106293,2.3614,1800.4,1800.3,1.11075]
[1746644106496,4.71062,1800.6,1800.3,13.4373164]
[1746644106693,4.71062,1800.6,1800.5,13.4373164]
[1746644107292,1.11062,1800.6,1800.5,12.93950674]
[1746644107995,1.11062,1800.6,1800.5,13.4373164]
[1746644108192,1.11063,1800.5,1800.4,3.2078]
[1746644109592,3.49653,1800.5,1800.4,3.2078]
[1746644109793,2.3859,1800.5,1800.4,4.31849]
[1746644109997,3.49653,1800.5,1800.4,3.2078]
[1746644110291,2.3859,1800.5,1800.4,3.2078]
[1746644110496,8.04458927,1800.6,1800.5,1.11063]
[1746644110694,8.04458927,1800.6,1800.5,16.7942464]
[1746644111098,9.15515927,1800.6,1800.5,16.7942464]
[1746644111496,9.15515927,1800.6,1800.5,22.7902464]
[1746644112001,6.65433057,1800.6,1800.5,22.7902464]
[1746644112997,5.54376057,1800.6,1800.5,22.7902464]
[1746644113303,5.54376057,1800.6,1800.5,26.3902464]
[1746644114100,6.65433057,1800.6,1800.5,26.3902464]
[1746644114295,5.54376057,1800.6,1800.5,26.3902464]
[1746644114501,5.54376057,1800.6,1800.5,36.5262464]
[1746644114799,0.70838314,1800.7,1800.5,35.4156164]
[1746644115000,7.33620613,1800.9,1800.6,24.9959164]
[1746644115300,7.33620613,1800.9,1800.8,4.31825]
[1746644115501,7.33620613,1800.9,1800.8,18.17462387]
[1746644115800,7.33620613,1800.9,1800.8,23.17462387]
[1746644116203,7.33620613,1800.9,1800.8,26.77462387]
[1746644116402,7.33620613,1800.9,1800.8,67.57462387]
[1746644117297,7.79111291,1801.0,1800.9,1.11038]
[1746644117494,7.79111291,1801.0,1800.9,24.2150964]
[1746644118201,7.79111291,1801.0,1800.9,27.8150964]
[1746644118600,7.79111291,1801.0,1800.9,32.8150964]
[1746644119308,7.79111291,1801.0,1800.9,27.8150964]
[1746644119504,9.16888681,1801.1,1801.0,1.11032]
[1746644119806,9.16888681,1801.1,1801.0,26.1320364]
[1746644120107,2.3499,1801.4,1801.3,1.11014]
[1746644120307,1.10996,1801.6,1801.5,1.11001]
[1746644120508,3.45986,1801.6,1801.5,1.11001]
[1746644120709,8.45986,1801.6,1801.5,1.11001]
[1746644121010,2.3499,1801.6,1801.5,1.11001]
[1746644121307,3.45985,1801.6,1801.5,1.11001]
[1746644121501,2.3499,1801.6,1801.5,1.11001]
[1746644121712,2.3499,1801.6,1801.5,17.25731674]
[1746644121903,9.16888681,1801.9,1801.5,22.6411164]
[1746644122109,10.27865681,1801.9,1801.8,17.7549464]
[1746644122310,9.16888681,1801.9,1801.8,19.6821464]
[1746644122512,9.16888681,1801.9,1801.8,22.8899464]
[1746644124218,9.16888681,1801.9,1801.8,22.39213674]
[1746644124219,10.27865681,1801.9,1801.8,22.39213674]
[1746644124613,10.27865681,1801.9,1801.8,14.04933674]
[1746644124816,1.10977,1801.9,1801.8,14.04933674]
[1746644125115,1.10983,1801.8,1801.7,6.24385]
[1746644125316,1.10983,1801.8,1801.7,19.18335674]
[1746644125818,1.10981,1801.9,1801.8,1.1098]
[1746644126317,1.10979,1801.9,1801.8,4.31758]
[1746644126511,1.10979,1801.9,1801.8,3.2078]
[1746644126711,1.10979,1801.9,1801.8,1.10983]
[1746644126918,1.10983,1801.8,1801.7,6.24384]
[1746644127115,1.10995,1801.6,1801.5,5.996]
[1746644127318,2.8874,1801.7,1801.6,14.5472664]
[1746644127511,1.10985,1801.8,1801.7,1.10987]
[1746644127711,1.10985,1801.8,1801.7,12.93950674]
[1746644127918,1.10981,1801.9,1801.5,8.77103]
[1746644128214,5.16624,1802.1,1801.5,8.77103]
[1746644128215,1.10964,1802.2,1801.9,13.4373164]
[1746644128517,1.10959,1802.2,1802.1,1.10962]
[1746644128719,1.10959,1802.2,1802.0,54.2373164]
[1746644128911,1.10959,1802.2,1802.1,1.10964]
[1746644129315,1.10966,1802.1,1802.0,1.10968]
[1746644129516,1.10962,1802.2,1802.1,1.10964]
[1746644129715,1.10962,1802.2,1802.0,16.14730674]
[1746644129920,1.10964,1802.1,1802.0,17.25696674]
[1746644130421,1.10967,1802.1,1802.0,1.10968]
[1746644130609,1.10971,1802.0,1801.9,41.90972]
[1746644130813,1.10971,1802.0,1801.9,1.10972]
[1746644131019,1.10971,1802.0,1801.8,8.3408]
[1746644131020,5.67863,1802.3,1801.8,8.3408]
[1746644131218,1.10966,1802.1,1802.0,1.10966]
[1746644131721,1.10966,1802.1,1802.0,4.31747]
[1746644131722,1.10964,1802.1,1802.0,4.31747]
[1746644131912,1.10963,1802.2,1802.1,1.10964]
[1746644132119,1.10962,1802.2,1802.1,1.10963]
[1746644132320,4.70962,1802.2,1802.1,1.10963]
[1746644132616,1.10965,1802.1,1802.0,1.10966]
[1746644132818,1.10965,1802.1,1802.0,14.5469764]
[1746644133014,1.10965,1802.1,1802.0,4.31746]
[1746644133323,1.10963,1802.2,1802.1,1.10964]
[1746644133519,4.01437,1802.3,1802.2,1.10958]
[1746644134113,6.5048,1802.3,1802.0,3.2078]
[1746644134319,6.5048,1802.3,1802.2,1.10958]
[1746644134627,6.5048,1802.3,1802.2,14.5468964]
[1746644134819,3.6,1802.3,1802.2,17.7546964]
[1746644135422,1.10945,1802.5,1802.2,17.7546964]
[1746644135423,4.31717,1802.6,1802.5,1.1094]
[1746644136020,1.10934,1802.6,1802.5,4.3172]
[1746644136225,6.95743,1802.7,1802.6,1.10934]
[1746644136424,6.95742,1802.7,1802.6,1.10934]
[1746644136618,1.10934,1802.6,1802.5,4.31715]
[1746644136818,3.2078,1803.0,1802.6,13.4373164]
[1746644137126,1.10915,1802.9,1802.8,1.10917]
[1746644137427,1.10928,1802.7,1802.6,25.6746464]
[1746644137619,3.0458,1802.9,1802.7,1.10927]
[1746644137620,1.10925,1802.8,1802.7,1.10927]
[1746644137819,1.10921,1802.8,1802.7,14.5465864]
[1746644138020,1.10928,1802.7,1802.6,12.23729]
[1746644138220,4.15503,1802.8,1802.7,13.4373164]
[1746644138423,4.15505,1802.8,1802.7,1.10928]
[1746644138623,1.10928,1802.7,1802.6,12.2373]
[1746644138821,4.15508,1802.7,1802.6,11.128]
[1746644139021,4.15508,1802.7,1802.6,24.5653164]
[1746644139220,4.15508,1802.7,1802.6,19.4333164]
[1746644139525,4.15508,1802.7,1802.6,20.5426564]
[1746644139728,3.0458,1802.7,1802.6,20.5426564]
[1746644139925,4.15508,1802.7,1802.6,19.4333164]
[1746644140224,3.0458,1802.7,1802.6,20.5426564]
[1746644140619,3.0458,1802.7,1802.6,23.7504564]
[1746644145036,1.10918,1802.9,1802.8,1.10914]
[1746644145330,1.10927,1802.8,1802.7,1.10924]
[1746644145926,1.10927,1802.8,1802.7,14.5465564]
[1746644146233,1.10927,1802.8,1802.7,13.4373164]
[1746644146727,1.10927,1802.8,1802.7,12.93950674]
[1746644147135,1.10927,1802.8,1802.7,14.04878674]
[1746644147434,3.93579,1802.9,1802.8,1.10921]
[1746644147627,2.8266,1802.9,1802.8,17.7543264]
[1746644147826,2.8266,1802.9,1802.8,17.25651674]
[1746644148822,3.93575,1802.9,1802.8,17.25651674]
[1746644149025,2.8266,1802.9,1802.8,17.7543264]
[1746644150023,3.93575,1802.9,1802.8,17.7543264]
[1746644150229,1.10921,1802.8,1802.7,6.22724]
[1746644150428,3.91401,1802.8,1802.7,19.6645564]
[1746644150833,2.8048,1802.8,1802.7,19.6645564]
[1746644151332,2.8048,1802.8,1802.7,22.6198564]
[1746644151534,7.97813802,1803.2,1803.1,1.10903]
[1746644152035,9.64171802,1803.2,1802.8,13.29766]
[1746644152229,9.64171802,1803.2,1802.9,13.4373164]
[1746644152433,1.10909,1803.0,1802.9,14.5464464]
[1746644152635,1.10908,1803.1,1803.0,1.10908]
[1746644152836,1.10909,1803.0,1802.9,1.60691966]
[1746644153038,3.0304,1803.1,1803.0,14.5464064]
[1746644153224,3.0304,1803.1,1803.0,17.7542064]
[1746644153833,3.0304,1803.1,1803.0,58.5542064]
[1746644155342,3.0304,1803.1,1803.0,17.7542064]
[1746644155641,3.66135802,1803.2,1803.1,1.10903]
[1746644155938,3.66135802,1803.2,1803.1,69.5901464]
[1746644157034,2.9168,1803.4,1803.3,1.10891]
[1746644157234,3.66135802,1803.5,1803.4,1.10884]
[1746644157434,3.66135802,1803.5,1803.4,17.6759564]
[1746644158335,6.82085802,1803.5,1803.4,17.6759564]
[1746644158537,7.92963802,1803.5,1803.4,16.5671164]
[1746644158747,7.92963802,1803.5,1803.4,17.6759564]
[1746644159334,6.82085802,1803.5,1803.4,17.6759564]
[1746644160039,7.92963802,1803.5,1803.4,14.5461564]
[1746644160241,7.92963802,1803.5,1803.3,3.2078]
[1746644160242,1.10884,1803.4,1803.3,3.2078]
[1746644160442,4.26834,1803.4,1803.3,3.2078]
[1746644160744,1.10891,1803.3,1803.2,1.10891]
[1746644160943,4.13701,1803.3,1803.2,1.10891]
[1746644161141,4.13701,1803.3,1803.2,14.5462264]
[1746644161341,3.0281,1803.3,1803.2,1.60671966]
[1746644161644,4.13701,1803.3,1803.2,1.10897]
[1746644162336,3.0281,1803.3,1803.2,1.10897]
[1746644163041,3.0281,1803.3,1803.2,14.5462864]
[1746644165547,3.0281,1803.3,1803.2,1.10897]
[1746644167439,4.13701,1803.3,1803.2,1.10897]
[1746644168036,3.0281,1803.3,1803.2,1.10897]
[1746644168345,4.13701,1803.3,1803.2,1.10897]
[1746644168647,3.0281,1803.3,1803.2,1.10897]
[1746644168944,4.13701,1803.3,1803.2,1.10897]
[1746644169347,3.0281,1803.3,1803.2,1.10897]
[1746644171348,3.0281,1803.3,1803.2,14.5462864]
[1746644175146,7.34481,1803.3,1803.2,14.5462864]
[1746644175350,1.10921,1802.8,1802.7,4.31702]
[1746644175649,11.2359,1803.3,1802.8,1.10918]
[1746644175650,1.10918,1802.9,1802.8,1.10918]
[1746644175844,1.10921,1802.8,1802.7,4.31703]
[1746644176052,3.2078,1802.9,1802.5,11.54298]
[1746644176353,3.108,1802.7,1802.6,17.7544564]
[1746644176851,3.108,1802.7,1802.6,4.31714]
[1746644177252,3.108,1802.7,1802.6,1.10934]
[1746644177449,3.108,1802.7,1802.6,4.31714]
[1746644179253,3.108,1802.7,1802.6,1.10934]
[1746644179455,3.108,1802.7,1802.6,4.31714]
[1746644180354,3.1121,1803.0,1802.9,1.10915]
[1746644180544,6.256,1803.0,1802.9,14.5464664]
[1746644180745,6.256,1803.0,1802.9,1.60695966]
[1746644181056,7.32433905,1803.1,1803.0,1.10909]
[1746644181250,7.32433905,1803.1,1803.0,17.7175064]
[1746644181552,7.32433905,1803.1,1803.0,22.8185064]
[1746644182354,7.32433905,1803.1,1803.0,28.8145064]
[1746644183046,6.01607905,1803.1,1803.0,33.8145064]
[1746644183241,6.01607905,1803.1,1803.0,37.4145064]
[1746644183454,4.82140905,1803.1,1803.0,37.4145064]
[1746644183748,3.70397905,1803.1,1803.0,37.4145064]
[1746644183947,14.19659107,1803.5,1803.0,37.4145064]
[1746644183948,7.50013606,1803.5,1803.4,14.5461564]
[1746644184155,12.89585625,1803.6,1803.5,1.10878]
[1746644184156,12.50325631,1803.6,1803.5,1.10878]
[1746644184454,6.2304,1804.3,1803.8,1.1086]
[1746644184650,11.08507679,1804.1,1804.0,1.10848]
[1746644184841,11.08507679,1804.1,1803.9,13.4373164]
[1746644185044,3.0102,1804.0,1803.9,14.5458364]
[1746644185244,3.0102,1804.0,1803.9,1.10852]
[1746644185549,11.08507679,1804.1,1804.0,1.10848]
[1746644185744,11.08507679,1804.1,1804.0,14.5457964]
[1746644186057,11.08507679,1804.1,1804.0,1.10848]
[1746644186949,19.09527679,1804.1,1803.7,8.3088]
[1746644187147,19.09527679,1804.1,1803.7,6.20964]
[1746644187148,1.10857,1803.9,1803.7,6.20964]
[1746644187347,4.31634,1803.9,1803.7,19.6469364]
[1746644187651,1.10876,1803.6,1803.4,1.10881]
[1746644187850,3.2078,1803.7,1803.0,14.3038]
[1746644188051,1.10867,1803.7,1803.6,13.4373164]
[1746644188253,1.1088,1803.5,1803.4,13.4373164]
[1746644188451,1.10876,1803.6,1803.4,1.60660966]
[1746644188955,6.0129,1803.8,1803.5,1.10878]
[1746644189155,1.10878,1803.5,1803.4,0.49780966]
[1746644189355,1.10868,1803.7,1803.5,1.10877]
[1746644189542,1.10872,1803.6,1803.5,1.10877]
[1746644189749,12.8207,1803.8,1803.3,3.0741]
[1746644189947,3.2078,1803.6,1803.4,14.5461564]
[1746644190152,1.10878,1803.5,1803.4,13.4373164]
[1746644190352,1.10884,1803.4,1803.3,1.10886]
[1746644190547,1.10891,1803.3,1803.2,4.31676]
[1746644190743,1.10888,1803.4,1803.2,3.2078]
[1746644190946,3.0498,1803.3,1803.2,17.25623674]
[1746644191150,1.10871,1803.7,1803.5,14.5460664]
[1746644191653,1.10872,1803.6,1803.5,1.60655966]
[1746644191853,1.10872,1803.6,1803.5,0.49780966]
[1746644192152,1.10872,1803.6,1803.5,1.60654966]
[1746644192458,1.10872,1803.6,1803.5,0.49780966]
[1746644192747,1.10872,1803.6,1803.5,1.60658966]
[1746644192955,1.10872,1803.6,1803.5,0.49780966]
[1746644193744,4.31651,1803.7,1803.5,0.49780966]
[1746644193947,3.2078,1803.7,1803.2,9.1591]
[1746644194255,1.10893,1803.3,1803.1,1.10903]
[1746644194443,1.10893,1803.3,1803.2,0.49780966]
[1746644194647,1.10881,1803.5,1803.3,1.10889]
[1746644194850,1.10872,1803.6,1803.5,14.04828674]
[1746644195048,1.10872,1803.6,1803.5,12.93950674]
[1746644195245,8.0050751,1803.7,1803.6,1.10872]
[1746644195451,8.0050751,1803.7,1803.6,17.6458364]
[1746644195946,6.8964151,1803.7,1803.6,17.6458364]
[1746644196147,3.6886151,1803.7,1803.6,25.8536364]
[1746644197546,3.6886151,1803.7,1803.6,20.8536364]
[1746644197750,3.6886151,1803.7,1803.6,25.8536364]
[1746644198257,3.6886151,1803.7,1803.6,20.8536364]
[1746644198457,1.10858,1803.9,1803.8,1.10855]
[1746644198654,1.1086,1803.8,1803.7,7.10462]
[1746644198854,1.1086,1803.8,1803.7,10.07582]
[1746644199055,9.5084651,1804.1,1803.9,1.1085]
[1746644199056,1.10852,1804.0,1803.9,1.1085]
[1746644199258,1.10852,1804.0,1803.9,14.5458164]
[1746644199865,7.8458651,1804.1,1804.0,1.10848]
[1746644200055,6.7374151,1804.1,1804.0,1.10848]
[1746644200256,1.10851,1804.0,1803.9,1.10849]
[1746644200461,1.10855,1803.9,1803.8,1.1086]
[1746644200762,1.10852,1804.0,1803.9,1.10851]
[1746644201164,1.10854,1803.9,1803.8,1.60635966]
[1746644201761,1.10851,1804.0,1803.9,1.10851]
[1746644202165,4.70851,1804.0,1803.9,1.10851]
[1746644202463,3.6,1804.0,1803.9,1.60631966]
[1746644202662,3.6,1804.0,1803.9,14.5458264]
[1746644203175,6.2566,1804.1,1804.0,1.10848]
[1746644203358,7.36501,1804.1,1804.0,14.5457964]
[1746644203557,7.36501,1804.1,1804.0,1.10848]
[1746644203764,6.2566,1804.1,1804.0,14.5457964]
[1746644203959,3.0488,1804.1,1804.0,20.5417964]
[1746644204164,3.6886151,1804.2,1804.1,1.10841]
[1746644204455,3.6886151,1804.2,1804.1,17.6061264]
[1746644204858,3.6886151,1804.2,1804.1,25.8139264]
[1746644205067,3.6886151,1804.2,1804.1,32.25328677]
[1746644205358,2.5045851,1804.2,1804.1,32.25328677]
[1746644205564,1.3170751,1804.2,1804.1,32.25328677]
[1746644205964,1.3170751,1804.2,1804.1,73.05328677]
[1746644206163,0.1836351,1804.2,1804.1,73.05328677]
[1746644206360,5.53292265,1804.3,1804.2,1.10835]
[1746644206665,9.21957795,1804.4,1804.3,1.10829]
[1746644206860,9.21663826,1804.7,1804.3,23.25159674]
[1746644207057,4.87898273,1804.7,1804.6,17.7532264]
[1746644207253,11.08778543,1805.0,1804.9,1.10792]
[1746644207453,11.08778543,1805.0,1804.9,17.7530364]
[1746644207758,11.08778543,1805.0,1804.8,3.2078]
[1746644207963,3.0161,1804.9,1804.8,14.5452864]
[1746644208262,3.0161,1804.9,1804.8,41.90797]
[1746644208465,3.0161,1804.9,1804.8,55.3452864]
[1746644209753,4.12402,1804.9,1804.8,45.879]
[1746644209954,6.204,1804.9,1804.8,6.18698]
[1746644210157,1.10805,1804.7,1804.6,1.10808]
[1746644210360,1.10805,1804.7,1804.6,14.5453964]
[1746644210568,10.91195,1804.9,1804.8,1.10798]
[1746644210754,9.804,1804.9,1804.8,14.5452964]
[1746644210960,6.6161,1804.9,1804.8,14.5452964]
[1746644211160,3.22841,1805.0,1804.9,1.10792]
[1746644211461,0.02061,1805.0,1804.9,58.4034364]
[1746644211659,0.02061,1805.0,1804.9,61.6112364]
[1746644213165,4.33633,1805.0,1804.8,5.996]
[1746644213361,1.12853,1805.0,1804.9,14.5452364]
[1746644213867,1.12853,1805.0,1804.9,1.10792]
[1746644214167,3.62061,1805.0,1804.8,5.996]
[1746644214466,3.62061,1805.0,1804.9,13.4373164]
[1746644214762,1.10792,1804.9,1804.8,5.996]
[1746644215164,1.10792,1804.9,1804.8,7.10398]
[1746644215562,1.1285,1805.0,1804.8,5.996]
[1746644215760,1.1285,1805.0,1804.9,14.5452364]
[1746644216059,6.8324,1805.1,1805.0,1.10786]
[1746644216261,11.148,1805.1,1805.0,1.10786]
[1746644216458,10.0402,1805.1,1805.0,1.10786]
[1746644216658,3.6,1805.1,1805.0,14.5451764]
[1746644217170,6.3957,1805.2,1805.1,1.1078]
[1746644217367,6.3957,1805.2,1805.1,14.5451164]
[1746644217556,6.3957,1805.2,1805.1,19.6231164]
[1746644217761,3.1879,1805.2,1805.1,19.6231164]
[1746644217970,4.29564,1805.2,1805.1,19.6231164]
[1746644218268,3.1879,1805.2,1805.1,19.6231164]
[1746644218769,4.29564,1805.2,1805.1,19.6231164]
[1746644218967,3.1879,1805.2,1805.1,19.6231164]
[1746644219168,4.29564,1805.2,1805.1,6.1858]
[1746644219468,3.1879,1805.2,1805.1,6.1858]
[1746644219966,3.1879,1805.2,1805.1,22.8309164]
[1746644220355,2.76857,1805.8,1805.2,2.76936]
[1746644220562,0.02563,1806.0,1805.9,1.10731]
[1746644220761,0.02563,1806.0,1805.9,22.8304264]
[1746644221260,0.02563,1806.0,1805.9,60.4226264]
[1746644221859,0.02563,1806.0,1805.9,41.29780966]
[1746644222066,1.13294,1806.0,1805.7,8.2848]
[1746644222269,3.62563,1806.0,1805.9,14.5446264]
[1746644222463,4.73288,1806.0,1805.9,41.90731]
[1746644222762,4.73288,1806.0,1805.9,1.10731]
[1746644222964,3.62563,1806.0,1805.7,8.2848]
[1746644223269,4.73292,1806.0,1805.9,12.93950674]
[1746644223465,4.73292,1806.0,1805.9,13.4373164]
[1746644223860,4.73292,1806.0,1805.9,17.7524264]
[1746644223861,3.62563,1806.0,1805.9,17.7524264]
[1746644224169,3.62563,1806.0,1805.9,20.8921264]
[1746644224662,3.62563,1806.0,1805.9,17.6843264]
[1746644224861,3.62563,1806.0,1805.9,20.8921264]
[1746644225264,0.02563,1806.0,1805.9,17.7524264]
[1746644225672,0.02563,1806.0,1805.9,26.8640264]
[1746644226172,0.02563,1806.0,1805.9,31.8640264]
[1746644226670,0.02563,1806.0,1805.9,26.8640264]
[1746644226872,0.02563,1806.0,1805.9,31.9410264]
[1746644227872,0.02563,1806.0,1805.9,72.7410264]
[1746644228060,0.02563,1806.0,1805.9,63.6294264]
[1746644228264,3.09483,1806.0,1805.9,63.6284264]
[1746644228467,3.09483,1806.0,1805.9,58.5524264]
[1746644228671,3.09483,1806.0,1805.9,63.13061674]
[1746644228867,3.09483,1806.0,1805.9,63.6284264]
[1746644229269,0.02563,1806.0,1805.9,63.6284264]
[1746644229465,0.02563,1806.0,1805.9,80.7245264]
[1746644229665,1e-05,1806.0,1805.9,80.7245264]
[1746644229970,1e-05,1806.0,1805.9,75.7245264]
[1746644230173,1e-05,1806.0,1805.9,54.2373164]
[1746644230360,1e-05,1806.0,1805.7,5.075]
[1746644230361,1.10734,1805.9,1805.7,5.075]
[1746644230560,1e-05,1806.0,1805.9,12.93950674]
[1746644230774,1.10731,1805.9,1805.8,55.3446464]
[1746644230967,1.10731,1805.9,1805.8,40.8]
[1746644231273,1.10737,1805.8,1805.7,6.18239]
[1746644231472,4.70734,1805.9,1805.8,1.10737]
[1746644231670,3.6,1805.9,1805.8,1.10737]
[1746644231969,4.70731,1805.9,1805.8,1.10737]
[1746644232162,3.6,1805.9,1805.8,1.10737]
[1746644232366,3.6,1805.9,1805.8,4.31517]
[1746644232568,3.6,1805.9,1805.8,1.10737]
[1746644233068,3.6,1805.9,1805.8,17.7524864]
[1746644233676,4.70731,1805.9,1805.8,17.7524864]
[1746644233872,3.6,1805.9,1805.8,14.5446864]
[1746644234072,3.6,1805.9,1805.8,14.04687674]